[Event "Masterklassen 2025"]
[Site "Uppsala, Sweden"]
[Date "2025.07.05"]
[Round "8.4"]
[White "Nygren, David"]
[Black "Mashhadi, Peyman"]
[Result "1/2-1/2"]
[TimeControl "90 min for 40 move + 30 min with an increment of 30 sec starting move 1"]
[WhiteFideId "1704761"]
[BlackFideId "1768581"]
[WhiteElo "2094"]
[BlackElo "2132"]

1. e4 {[%clk 01:30:54]} {[%emt 00:00:06]} g6 {[%clk 01:30:39]} {[%emt
00:00:21]} 2. d4 {[%clk 01:30:43]} {[%emt 00:00:41]} Bg7 {[%clk 01:30:58]}
{[%emt 00:00:10]} 3. Nf3 {[%clk 01:30:36]} {[%emt 00:00:37]} d6 {[%clk
01:31:18]} {[%emt 00:00:10]} 4. c3 {[%clk 01:30:32]} {[%emt 00:00:35]} Nf6
{[%clk 01:30:41]} {[%emt 00:01:06]} 5. Bd3 {[%clk 01:30:55]} {[%emt 00:00:07]}
Nbd7 {[%clk 01:29:56]} {[%emt 00:01:16]} 6. O-O {[%clk 01:29:13]} {[%emt
00:02:11]} O-O {[%clk 01:29:34]} {[%emt 00:00:52]} 7. Re1 {[%clk 01:28:27]}
{[%emt 00:01:16]} e5 {[%clk 01:28:59]} {[%emt 00:01:06]} 8. h3 {[%clk
01:27:36]} {[%emt 00:01:21]} c6 {[%clk 01:28:02]} {[%emt 00:01:27]} 9. a4
{[%clk 01:24:05]} {[%emt 00:04:01]} a5 {[%clk 01:27:31]} {[%emt 00:01:01]} 10.
Na3 {[%clk 01:20:07]} {[%emt 00:04:28]} Qc7 {[%clk 01:23:50]} {[%emt 00:04:11]}
11. dxe5 {[%clk 01:19:19]} {[%emt 00:01:18]} dxe5 {[%clk 01:20:21]} {[%emt
00:03:59]} 12. Be3 {[%clk 01:18:10]} {[%emt 00:01:38]} Nh5 {[%clk 01:13:34]}
{[%emt 00:07:17]} 13. Bf1 {[%clk 01:13:43]} {[%emt 00:04:58]} Nf4 {[%clk
01:10:50]} {[%emt 00:03:13]} 14. Nc4 {[%clk 01:09:57]} {[%emt 00:04:17]} Re8
{[%clk 00:56:56]} {[%emt 00:14:23]} 15. Ng5 {[%clk 01:00:35]} {[%emt 00:09:53]}
Bf8 {[%clk 00:49:30]} {[%emt 00:07:56]} 16. Qb3 {[%clk 00:48:46]} {[%emt
00:12:19]} Nc5 {[%clk 00:47:02]} {[%emt 00:02:58]} 17. Qb6 {[%clk 00:43:20]}
{[%emt 00:05:56]} Qe7 {[%clk 00:46:26]} {[%emt 00:01:06]} 18. Nf3 {[%clk
00:38:25]} {[%emt 00:05:25]} f6 {[%clk 00:41:23]} {[%emt 00:05:33]} 19. Bxc5
{[%clk 00:25:17]} {[%emt 00:13:38]} Qxc5 {[%clk 00:41:40]} {[%emt 00:00:13]} 20.
Red1 {[%clk 00:22:58]} {[%emt 00:02:48]} Be6 {[%clk 00:39:39]} {[%emt
00:02:31]} 21. Qxc5 {[%clk 00:19:33]} {[%emt 00:03:55]} Bxc5 {[%clk 00:40:01]}
{[%emt 00:00:08]} 22. Nxa5 {[%clk 00:18:26]} {[%emt 00:01:38]} Rxa5 {[%clk
00:38:17]} {[%emt 00:02:14]} 23. b4 {[%clk 00:18:48]} {[%emt 00:00:07]} Ra7
{[%clk 00:37:04]} {[%emt 00:01:43]} 24. bxc5 {[%clk 00:18:27]} {[%emt
00:00:52]} Rea8 {[%clk 00:31:36]} {[%emt 00:05:58]} 25. Rd6 {[%clk 00:15:10]}
{[%emt 00:03:47]} Kf7 {[%clk 00:29:08]} {[%emt 00:02:57]} 26. Rb1 {[%clk
00:15:07]} {[%emt 00:00:34]} Bc8 {[%clk 00:24:49]} {[%emt 00:04:49]} 27. g3
{[%clk 00:07:09]} {[%emt 00:08:28]} Nxh3+ {[%clk 00:21:35]} {[%emt 00:03:44]}
28. Kg2 {[%clk 00:06:17]} {[%emt 00:01:22]} g5 {[%clk 00:20:27]} {[%emt
00:01:38]} 29. Bc4+ {[%clk 00:05:21]} {[%emt 00:01:26]} Ke7 {[%clk 00:20:45]}
{[%emt 00:00:12]} 30. Bg8 {[%clk 00:03:55]} {[%emt 00:01:56]} Rxa4 {[%clk
00:19:39]} {[%emt 00:01:37]} 31. Bxh7 {[%clk 00:04:06]} {[%emt 00:00:18]} Ra2
{[%clk 00:19:20]} {[%emt 00:00:49]} 32. Bf5 {[%clk 00:03:17]} {[%emt 00:01:19]}
g4 {[%clk 00:12:38]} {[%emt 00:07:12]} 33. Nd2 {[%clk 00:00:59]} {[%emt
00:02:48]} b5 {[%clk 00:12:30]} {[%emt 00:00:37]} 34. f3 {[%clk 00:00:48]}
{[%emt 00:00:41]} Ng5 {[%clk 00:11:39]} {[%emt 00:01:22]} 35. Kf1 {[%clk
00:00:34]} {[%emt 00:00:44]} Bxf5 {[%clk 00:11:25]} {[%emt 00:00:44]} 36. exf5
{[%clk 00:01:00]} {[%emt 00:00:04]} gxf3 {[%clk 00:11:41]} {[%emt 00:00:14]} 37.
Rd1 {[%clk 00:00:40]} {[%emt 00:00:49]} Rh8 {[%clk 00:11:22]} {[%emt 00:00:50]}
38. Nxf3 {[%clk 00:00:44]} {[%emt 00:00:27]} Rh1+ {[%clk 00:03:01]} {[%emt
00:08:50]} 39. Ng1 {[%clk 00:01:11]} {[%emt 00:00:03]} Rxg1+ {[%clk 00:02:12]}
{[%emt 00:01:19]} 40. Kxg1 {[%clk 00:01:37]} {[%emt 00:00:04]} Nf3+ {[%clk
00:02:30]} {[%emt 00:00:12]} 41. Kf1 {[%clk 00:01:51]} {[%emt 00:00:15]} Nh2+
{[%clk 00:02:41]} {[%emt 00:00:19]} 42. Ke1 {[%clk 00:01:36]} {[%emt 00:00:45]}
Nf3+ {[%clk 00:02:55]} {[%emt 00:00:16]} 43. Kf1 {[%emt 00:00:05]} 1/2-1/2

[Event "Masterklassen 2025"]
[Site "Uppsala, Sweden"]
[Date "2025.07.05"]
[Round "8.5"]
[White "Eklund, Joel"]
[Black "Willstedt, Lukas"]
[Result "1-0"]
[TimeControl "90 min for 40 move + 30 min with an increment of 30 sec starting move 1"]
[WhiteFideId "1705288"]
[BlackFideId "1751913"]
[WhiteElo "2194"]
[BlackElo "2055"]

1. d4 {[%clk 01:30:54]} {[%emt 00:00:05]} e6 {[%clk 01:30:54]} {[%emt
00:00:06]} 2. e4 {[%clk 01:31:01]} {[%emt 00:00:24]} d5 {[%clk 01:31:17]}
{[%emt 00:00:06]} 3. Nc3 {[%clk 01:30:55]} {[%emt 00:00:36]} Nf6 {[%clk
01:31:39]} {[%emt 00:00:08]} 4. e5 {[%clk 01:31:10]} {[%emt 00:00:16]} Nfd7
{[%clk 01:32:01]} {[%emt 00:00:07]} 5. f4 {[%clk 01:31:24]} {[%emt 00:00:17]}
c5 {[%clk 01:32:21]} {[%emt 00:00:09]} 6. Nf3 {[%clk 01:31:41]} {[%emt
00:00:13]} Nc6 {[%clk 01:32:33]} {[%emt 00:00:19]} 7. Be3 {[%clk 01:31:36]}
{[%emt 00:00:34]} a6 {[%clk 01:31:58]} {[%emt 00:01:05]} 8. Be2 {[%clk
01:31:25]} {[%emt 00:00:40]} b5 {[%clk 01:29:49]} {[%emt 00:02:40]} 9. a3
{[%clk 01:31:22]} {[%emt 00:00:34]} Qb6 {[%clk 01:28:52]} {[%emt 00:01:26]} 10.
Bf2 {[%clk 01:30:58]} {[%emt 00:00:54]} Bb7 {[%clk 01:26:48]} {[%emt 00:02:34]}
11. O-O {[%clk 01:29:16]} {[%emt 00:02:12]} cxd4 {[%clk 01:24:16]} {[%emt
00:03:03]} 12. b4 {[%clk 01:26:04]} {[%emt 00:03:42]} Qc7 {[%clk 01:23:52]}
{[%emt 00:00:53]} 13. Nxd4 {[%clk 01:26:24]} {[%emt 00:00:10]} O-O-O {[%clk
01:19:07]} {[%emt 00:05:15]} 14. Nxc6 {[%clk 01:02:38]} {[%emt 00:24:17]} Qxc6
{[%clk 01:16:55]} {[%emt 00:02:40]} 15. Qd4 {[%clk 01:00:36]} {[%emt 00:02:33]}
f6 {[%clk 01:06:41]} {[%emt 00:10:45]} 16. a4 {[%clk 00:45:51]} {[%emt
00:15:15]} Bxb4 {[%clk 01:01:19]} {[%emt 00:05:52]} 17. Qxb4 {[%clk 00:46:10]}
{[%emt 00:00:11]} d4 {[%clk 01:01:33]} {[%emt 00:00:15]} 18. Ne4 {[%clk
00:46:21]} {[%emt 00:00:19]} Qxe4 {[%clk 00:58:03]} {[%emt 00:04:00]} 19. Bf3
{[%clk 00:46:44]} {[%emt 00:00:07]} Qxf4 {[%clk 00:57:35]} {[%emt 00:00:59]} 20.
Bxb7+ {[%clk 00:46:26]} {[%emt 00:00:48]} Kxb7 {[%clk 00:58:02]} {[%emt
00:00:02]} 21. axb5 {[%clk 00:46:39]} {[%emt 00:00:18]} a5 {[%clk 00:58:07]}
{[%emt 00:00:24]} 22. Rxa5 {[%clk 00:39:49]} {[%emt 00:07:21]} Qxe5 {[%clk
00:45:17]} {[%emt 00:13:20]} 23. Ra7+ {[%clk 00:35:47]} {[%emt 00:04:32]} Kxa7
{[%clk 00:44:44]} {[%emt 00:01:02]} 24. Bxd4+ {[%clk 00:36:12]} {[%emt
00:00:06]} Qxd4+ {[%clk 00:44:36]} {[%emt 00:00:37]} 25. Qxd4+ {[%clk
00:36:36]} {[%emt 00:00:06]} Nb6 {[%clk 00:44:02]} {[%emt 00:01:04]} 26. Ra1+
{[%clk 00:37:01]} {[%emt 00:00:05]} Kb7 {[%clk 00:44:27]} {[%emt 00:00:05]} 27.
Qe4+ {[%clk 00:37:10]} {[%emt 00:00:22]} 1-0

[Event "Masterklassen 2025"]
[Site "Uppsala, Sweden"]
[Date "2025.07.05"]
[Round "8.6"]
[White "Hammarstrom, Ulf"]
[Black "Hagevi, Vidar"]
[Result "1/2-1/2"]
[TimeControl "90 min for 40 move + 30 min with an increment of 30 sec starting move 1"]
[WhiteFideId "1710214"]
[BlackFideId "1767526"]
[WhiteElo "2176"]
[BlackElo "2139"]

1. e4 {[%clk 01:24:26]} {[%emt 00:06:30]} c5 {[%clk 01:30:53]} {[%emt
00:00:10]} 2. c3 {[%clk 01:24:51]} {[%emt 00:00:06]} Nf6 {[%clk 01:30:32]}
{[%emt 00:00:50]} 3. e5 {[%clk 01:24:50]} {[%emt 00:00:32]} Nd5 {[%clk
01:30:56]} {[%emt 00:00:05]} 4. Nf3 {[%clk 01:25:12]} {[%emt 00:00:08]} e6
{[%clk 01:30:24]} {[%emt 00:01:02]} 5. d4 {[%clk 01:25:25]} {[%emt 00:00:18]}
cxd4 {[%clk 01:30:43]} {[%emt 00:00:09]} 6. cxd4 {[%clk 01:25:49]} {[%emt
00:00:07]} d6 {[%clk 01:31:02]} {[%emt 00:00:11]} 7. Bc4 {[%clk 01:25:43]}
{[%emt 00:00:37]} Be7 {[%clk 01:30:51]} {[%emt 00:00:39]} 8. O-O {[%clk
01:26:06]} {[%emt 00:00:08]} O-O {[%clk 01:31:09]} {[%emt 00:00:12]} 9. Qe2
{[%clk 01:25:56]} {[%emt 00:00:41]} b6 {[%clk 01:27:56]} {[%emt 00:03:43]} 10.
Rd1 {[%clk 01:25:50]} {[%emt 00:00:36]} Bb7 {[%clk 01:28:03]} {[%emt 00:00:22]}
11. Bxd5 {[%clk 01:25:36]} {[%emt 00:00:44]} Bxd5 {[%clk 01:19:28]} {[%emt
00:09:06]} 12. Nc3 {[%clk 01:25:42]} {[%emt 00:00:24]} Bb7 {[%clk 01:14:06]}
{[%emt 00:05:51]} 13. d5 {[%clk 01:23:42]} {[%emt 00:02:31]} exd5 {[%clk
01:12:13]} {[%emt 00:02:22]} 14. e6 {[%clk 01:19:18]} {[%emt 00:04:54]} fxe6
{[%clk 01:09:27]} {[%emt 00:03:16]} 15. Qxe6+ {[%clk 01:19:22]} {[%emt
00:00:26]} Rf7 {[%clk 01:07:25]} {[%emt 00:02:33]} 16. Nxd5 {[%clk 01:16:45]}
{[%emt 00:03:07]} Qd7 {[%clk 01:03:47]} {[%emt 00:04:07]} 17. Nxe7+ {[%clk
01:06:04]} {[%emt 00:11:11]} Qxe7 {[%clk 01:04:09]} {[%emt 00:00:08]} 18. Qxe7
{[%clk 01:00:12]} {[%emt 00:06:23]} Rxe7 {[%clk 01:04:02]} {[%emt 00:00:37]} 19.
Rxd6 {[%clk 00:58:56]} {[%emt 00:01:46]} Bxf3 {[%clk 01:03:13]} {[%emt
00:01:17]} 20. Rd8+ {[%clk 00:58:19]} {[%emt 00:01:08]} Kf7 {[%clk 01:03:16]}
{[%emt 00:00:28]} 21. gxf3 {[%clk 00:58:20]} {[%emt 00:00:28]} Re8 {[%clk
00:57:39]} {[%emt 00:06:07]} 22. Rxe8 {[%clk 00:53:21]} {[%emt 00:05:30]} Kxe8
{[%clk 00:58:03]} {[%emt 00:00:05]} 23. b3 {[%clk 00:52:46]} {[%emt 00:01:06]}
Nd7 {[%clk 00:56:10]} {[%emt 00:02:21]} 24. Bb2 {[%clk 00:52:51]} {[%emt
00:00:27]} Nf6 {[%clk 00:56:25]} {[%emt 00:00:14]} 25. Rc1 {[%clk 00:39:31]}
{[%emt 00:13:51]} Kd7 {[%clk 00:54:33]} {[%emt 00:02:21]} 26. Rc4 {[%clk
00:28:35]} {[%emt 00:11:26]} Re8 {[%clk 00:52:01]} {[%emt 00:03:00]} 27. Bxf6
{[%clk 00:27:22]} {[%emt 00:01:45]} gxf6 {[%clk 00:52:05]} {[%emt 00:00:26]} 28.
Rh4 {[%clk 00:23:12]} {[%emt 00:04:40]} Re7 {[%clk 00:52:03]} {[%emt 00:00:32]}
29. Rf4 {[%clk 00:19:40]} {[%emt 00:04:03]} Rf7 {[%clk 00:52:17]} {[%emt
00:00:15]} 30. Kf1 {[%clk 00:19:20]} {[%emt 00:00:50]} Ke6 {[%clk 00:51:50]}
{[%emt 00:00:56]} 31. Ke2 {[%clk 00:18:36]} {[%emt 00:01:15]} Ke5 {[%clk
00:51:45]} {[%emt 00:00:33]} 32. Re4+ {[%clk 00:18:33]} {[%emt 00:00:35]} Kf5
{[%clk 00:47:41]} {[%emt 00:04:34]} 33. Ke3 {[%clk 00:15:39]} {[%emt 00:03:24]}
Kg5 {[%clk 00:42:54]} {[%emt 00:05:17]} 34. Rg4+ {[%clk 00:14:07]} {[%emt
00:02:03]} Kf5 {[%clk 00:43:06]} {[%emt 00:00:18]} 35. Rf4+ {[%clk 00:14:18]}
{[%emt 00:00:19]} Kg5 {[%clk 00:43:13]} {[%emt 00:00:22]} 36. Rg4+ {[%clk
00:14:35]} {[%emt 00:00:13]} 1/2-1/2

[Event "Masterklassen 2025"]
[Site "Uppsala, Sweden"]
[Date "2025.07.05"]
[Round "8.7"]
[White "Johnson, Daniel"]
[Black "Odell-Johansson, Leo"]
[Result "1/2-1/2"]
[TimeControl "90 min for 40 move + 30 min with an increment of 30 sec starting move 1"]
[WhiteFideId "1721283"]
[BlackFideId "1722727"]
[WhiteElo "2175"]
[BlackElo "1991"]

1. Nf3 {[%clk 01:24:44]} {[%emt 00:06:14]} Nf6 {[%clk 01:30:33]} {[%emt
00:00:28]} 2. c4 {[%clk 01:24:43]} {[%emt 00:00:28]} e6 {[%clk 01:31:00]}
{[%emt 00:00:07]} 3. e3 {[%clk 01:24:46]} {[%emt 00:00:26]} d5 {[%clk
01:31:24]} {[%emt 00:00:06]} 4. b3 {[%clk 01:25:00]} {[%emt 00:00:15]} c5
{[%clk 01:30:15]} {[%emt 00:01:40]} 5. Bb2 {[%clk 01:24:54]} {[%emt 00:00:36]}
Nc6 {[%clk 01:30:22]} {[%emt 00:00:24]} 6. cxd5 {[%clk 01:24:31]} {[%emt
00:00:52]} exd5 {[%clk 01:28:11]} {[%emt 00:02:41]} 7. d3 {[%clk 01:21:23]}
{[%emt 00:03:38]} Bd6 {[%clk 01:22:26]} {[%emt 00:06:14]} 8. g3 {[%clk
01:20:37]} {[%emt 00:01:17]} Bf5 {[%clk 01:08:16]} {[%emt 00:14:41]} 9. a3
{[%clk 01:12:53]} {[%emt 00:08:13]} O-O {[%clk 01:00:00]} {[%emt 00:08:46]} 10.
Bg2 {[%clk 01:05:51]} {[%emt 00:07:31]} Qa5+ {[%clk 00:48:10]} {[%emt
00:12:20]} 11. Bc3 {[%clk 01:02:10]} {[%emt 00:04:11]} Qa6 {[%clk 00:45:19]}
{[%emt 00:03:22]} 12. d4 {[%clk 00:42:01]} {[%emt 00:20:39]} Ne4 {[%clk
00:31:22]} {[%emt 00:14:28]} 13. Nh4 {[%clk 00:31:56]} {[%emt 00:10:33]} Nxc3
{[%clk 00:13:33]} {[%emt 00:18:20]} 14. Nxc3 {[%clk 00:32:18]} {[%emt
00:00:07]} Be6 {[%clk 00:13:17]} {[%emt 00:00:46]} 15. dxc5 {[%clk 00:05:28]}
{[%emt 00:27:21]} Be5 {[%clk 00:12:59]} {[%emt 00:00:48]} 16. Rc1 {[%clk
00:05:42]} {[%emt 00:00:15]} d4 {[%clk 00:09:39]} {[%emt 00:03:51]} 17. Ne4
{[%clk 00:05:10]} {[%emt 00:01:02]} dxe3 {[%clk 00:08:51]} {[%emt 00:01:19]} 18.
fxe3 {[%clk 00:05:33]} {[%emt 00:00:07]} Bb2 {[%clk 00:06:17]} {[%emt
00:03:04]} 19. Rb1 {[%clk 00:05:45]} {[%emt 00:00:17]} Bxa3 {[%clk 00:06:35]}
{[%emt 00:00:12]} 20. Kf2 {[%clk 00:05:01]} {[%emt 00:01:13]} Ne5 {[%clk
00:06:30]} {[%emt 00:00:36]} 21. h3 {[%clk 00:04:19]} {[%emt 00:01:12]} Nd3+
{[%clk 00:04:11]} {[%emt 00:02:49]} 22. Kg1 {[%clk 00:03:59]} {[%emt 00:00:50]}
Bxc5 {[%clk 00:04:09]} {[%emt 00:00:32]} 23. Kh2 {[%clk 00:03:11]} {[%emt
00:01:17]} Rad8 {[%clk 00:04:31]} {[%emt 00:00:09]} 24. Qh5 {[%clk 00:02:45]}
{[%emt 00:00:55]} Be7 {[%clk 00:02:17]} {[%emt 00:02:44]} 25. Rhd1 {[%clk
00:02:46]} {[%emt 00:00:29]} Qa2 {[%clk 00:02:03]} {[%emt 00:00:43]} 26. Ra1
{[%clk 00:02:28]} {[%emt 00:00:50]} Qxb3 {[%clk 00:02:28]} {[%emt 00:00:05]} 27.
Rab1 {[%clk 00:02:53]} {[%emt 00:00:06]} Qc2 {[%clk 00:02:21]} {[%emt
00:00:36]} 28. Rxb7 {[%clk 00:02:04]} {[%emt 00:01:19]} Bxh4 {[%clk 00:02:35]}
{[%emt 00:00:16]} 29. Rd2 {[%clk 00:02:24]} {[%emt 00:00:10]} Qc8 {[%clk
00:01:51]} {[%emt 00:01:13]} 30. Qxh4 {[%clk 00:02:52]} {[%emt 00:00:03]} Ne1
{[%clk 00:01:09]} {[%emt 00:01:12]} 31. Ng5 {[%clk 00:01:46]} {[%emt 00:01:35]}
h6 {[%clk 00:01:32]} {[%emt 00:00:08]} 32. Rxd8 {[%clk 00:00:52]} {[%emt
00:01:24]} Rxd8 {[%clk 00:00:53]} {[%emt 00:01:09]} 33. Be4 {[%clk 00:01:21]}
{[%emt 00:00:01]} Rd2+ {[%clk 00:00:45]} {[%emt 00:00:37]} 34. Kh1 {[%clk
00:01:37]} {[%emt 00:00:14]} Bd5 {[%clk 00:00:42]} {[%emt 00:00:34]} 35. Bxd5
{[%clk 00:01:00]} {[%emt 00:01:07]} Rxd5 {[%clk 00:01:04]} {[%emt 00:00:08]} 36.
Qb4 {[%clk 00:01:26]} {[%emt 00:00:03]} Qc6 {[%clk 00:00:38]} {[%emt 00:00:57]}
37. Rb8+ {[%clk 00:00:36]} {[%emt 00:01:20]} Rd8+ {[%clk 00:00:38]} {[%emt
00:00:30]} 38. e4 {[%clk 00:01:02]} {[%emt 00:00:04]} Qd7 {[%clk 00:00:48]}
{[%emt 00:00:19]} 39. Qb7 {[%clk 00:00:43]} {[%emt 00:00:50]} Qe8 {[%clk
00:00:33]} {[%emt 00:00:44]} 40. Qxf7+ {[%clk 00:00:33]} {[%emt 00:00:40]} Qxf7
{[%clk 00:00:45]} {[%emt 00:00:19]} 41. Rxd8+ {[%clk 00:00:46]} {[%emt
00:00:17]} Qf8 {[%clk 00:01:04]} {[%emt 00:00:10]} 42. Rxf8+ {[%clk 00:26:32]}
{[%emt 00:04:45]} Kxf8 {[%clk 00:29:24]} {[%emt 00:02:09]} 43. Ne6+ {[%clk
00:19:41]} {[%emt 00:07:22]} Kf7 {[%clk 00:22:48]} {[%emt 00:07:06]} 44. Nc5
{[%clk 00:19:21]} {[%emt 00:00:50]} Kf6 {[%clk 00:20:16]} {[%emt 00:03:01]} 45.
Kg1 {[%clk 00:19:33]} {[%emt 00:00:19]} Ke5 {[%clk 00:18:46]} {[%emt 00:01:59]}
46. Kf2 {[%clk 00:19:54]} {[%emt 00:00:10]} Nc2 {[%clk 00:18:51]} {[%emt
00:00:23]} 47. Ke2 {[%clk 00:17:51]} {[%emt 00:02:35]} a5 {[%clk 00:16:41]}
{[%emt 00:02:40]} 48. Kd3 {[%clk 00:17:53]} {[%emt 00:00:27]} Nd4 {[%clk
00:12:25]} {[%emt 00:04:47]} 49. Ke3 {[%clk 00:15:43]} {[%emt 00:02:40]} Ne6
{[%clk 00:12:40]} {[%emt 00:00:15]} 50. Na4 {[%clk 00:07:00]} {[%emt 00:09:13]}
Kd6 {[%clk 00:10:12]} {[%emt 00:02:55]} 51. Nb2 {[%clk 00:05:21]} {[%emt
00:02:11]} Kc5 {[%clk 00:10:03]} {[%emt 00:00:38]} 52. h4 {[%clk 00:05:37]}
{[%emt 00:00:16]} Kb4 {[%clk 00:09:41]} {[%emt 00:00:52]} 53. e5 {[%clk
00:05:18]} {[%emt 00:00:48]} Kb3 {[%clk 00:09:15]} {[%emt 00:00:57]} 54. Nd3
{[%clk 00:05:37]} {[%emt 00:00:11]} a4 {[%clk 00:08:39]} {[%emt 00:01:06]} 55.
Ke4 {[%clk 00:05:52]} {[%emt 00:00:14]} Kc3 {[%clk 00:05:19]} {[%emt 00:03:50]}
56. Nc1 {[%clk 00:06:20]} {[%emt 00:00:02]} Kc4 {[%clk 00:04:52]} {[%emt
00:00:57]} 57. Kf5 {[%clk 00:04:42]} {[%emt 00:02:07]} Nd4+ {[%clk 00:01:55]}
{[%emt 00:03:29]} 58. Kg6 {[%clk 00:00:33]} {[%emt 00:04:39]} Kd5 {[%clk
00:00:56]} {[%emt 00:01:29]} 59. Kxg7 {[%clk 00:00:35]} {[%emt 00:00:28]} Nf5+
{[%clk 00:00:44]} {[%emt 00:00:42]} 60. Kf6 {[%clk 00:00:58]} {[%emt 00:00:07]}
Nxg3 {[%clk 00:00:40]} {[%emt 00:00:33]} 61. e6 {[%clk 00:01:21]} {[%emt
00:00:07]} Ne4+ {[%clk 00:00:53]} {[%emt 00:00:17]} 62. Kf7 {[%clk 00:01:28]}
{[%emt 00:00:18]} Nd6+ {[%clk 00:00:53]} {[%emt 00:00:36]} 63. Kf6 {[%clk
00:00:44]} {[%emt 00:01:14]} Ne4+ {[%clk 00:00:38]} {[%emt 00:00:45]} 64. Kf7
{[%clk 00:01:08]} {[%emt 00:00:05]} Nd6+ {[%clk 00:00:50]} {[%emt 00:00:19]} 65.
Kf6 {[%clk 00:01:19]} {[%emt 00:00:19]} Ne4+ {[%clk 00:00:52]} {[%emt
00:00:27]} 1/2-1/2

[Event "Masterklassen 2025"]
[Site "Uppsala, Sweden"]
[Date "2025.07.05"]
[Round "8.8"]
[White "Ask, Josef"]
[Black "Karde, Douglas"]
[Result "1/2-1/2"]
[TimeControl "90 min for 40 move + 30 min with an increment of 30 sec starting move 1"]
[WhiteTitle "FM"]
[WhiteFideId "1704583"]
[BlackFideId "1761498"]
[WhiteElo "2121"]
[BlackElo "2064"]

1. e4 {[%clk 01:30:58]} {[%emt 00:00:01]} Nc6 {[%clk 01:30:56]} {[%emt
00:00:04]} 2. Ne2 {[%clk 01:29:42]} {[%emt 00:01:47]} e6 {[%clk 01:31:00]}
{[%emt 00:00:25]} 3. g3 {[%clk 01:28:08]} {[%emt 00:02:05]} d5 {[%clk
01:30:13]} {[%emt 00:01:16]} 4. Bg2 {[%clk 01:27:52]} {[%emt 00:00:46]} dxe4
{[%clk 01:29:54]} {[%emt 00:00:49]} 5. Nbc3 {[%clk 01:27:49]} {[%emt 00:00:34]}
f5 {[%clk 01:26:03]} {[%emt 00:04:20]} 6. f3 {[%clk 01:27:25]} {[%emt
00:00:54]} exf3 {[%clk 01:26:08]} {[%emt 00:00:26]} 7. Bxf3 {[%clk 01:27:51]}
{[%emt 00:00:03]} Nf6 {[%clk 01:26:05]} {[%emt 00:00:33]} 8. d4 {[%clk
01:25:45]} {[%emt 00:02:37]} Be7 {[%clk 01:23:00]} {[%emt 00:03:34]} 9. O-O
{[%clk 01:25:23]} {[%emt 00:00:53]} O-O {[%clk 01:23:22]} {[%emt 00:00:08]} 10.
a3 {[%emt 00:06:11]} h6 {[%emt 00:03:32]} 11. Qd3 {[%emt 00:04:55]} Bd6 {[%emt
00:07:07]} 12. Nb5 {[%emt 00:00:35]} Ne7 {[%emt 00:01:33]} 13. c4 {[%emt
00:03:59]} a6 {[%emt 00:01:14]} 14. Nxd6 {[%emt 00:00:23]} cxd6 {[%emt
00:01:57]} 15. Rd1 {[%emt 00:05:08]} Qc7 {[%emt 00:05:29]} 16. b4 {[%emt
00:04:33]} e5 {[%emt 00:09:44]} 17. dxe5 {[%emt 00:00:09]} dxe5 {[%emt
00:00:28]} 18. Qd6 {[%emt 00:09:30]} Qxd6 {[%emt 00:00:07]} 19. Rxd6 {[%emt
00:02:42]} Ne8 {[%emt 00:02:34]} 20. Rb6 {[%emt 00:05:43]} e4 {[%emt 00:00:55]}
21. Bg2 {[%emt 00:00:17]} Rf6 {[%clk 00:49:13]} {[%emt 00:00:08]} 22. Rxf6
{[%clk 00:42:43]} Nxf6 {[%clk 00:49:34]} {[%emt 00:10:34]} 23. Bb2 {[%clk
00:42:31]} Be6 {[%clk 00:47:20]} {[%emt 00:03:25]} 24. Bxf6 {[%clk 00:41:22]}
gxf6 {[%clk 00:47:42]} {[%emt 00:01:48]} 25. Nf4 {[%clk 00:36:10]} Bxc4 {[%clk
00:45:30]} {[%emt 00:08:24]} 26. Rd1 {[%clk 00:36:28]} Bb5 {[%clk 00:35:44]}
{[%emt 00:10:27]} 27. Rd6 {[%clk 00:33:27]} Kf7 {[%clk 00:35:34]} {[%emt
00:04:11]} 28. Nh5 {[%clk 00:29:54]} Ng8 {[%clk 00:28:45]} {[%emt 00:08:27]} 29.
Bh3 {[%clk 00:25:28]} Rc8 {[%clk 00:28:57]} {[%emt 00:15:14]} 30. Bxf5 {[%clk
00:16:45]} Rc1+ {[%clk 00:28:57]} {[%emt 00:02:39]} 31. Kg2 {[%clk 00:15:48]}
e3 {[%clk 00:29:22]} {[%emt 00:01:33]} 32. Nf4 {[%clk 00:14:31]} e2 {[%clk
00:28:10]} {[%emt 00:09:53]} 33. Nxe2 {[%clk 00:07:54]} Bxe2 {[%clk 00:28:10]}
{[%emt 00:01:12]} 34. Be6+ {[%clk 00:07:32]} Ke7 {[%clk 00:26:33]} {[%emt
00:02:59]} 35. Rb6 {[%clk 00:06:45]} Bc4 {[%clk 00:26:58]} {[%emt 00:01:22]} 36.
Bxc4 {[%clk 00:06:20]} Rxc4 {[%clk 00:27:19]} {[%emt 00:01:03]} 37. Rxb7+
{[%clk 00:06:47]} Kd6 {[%clk 00:26:39]} {[%emt 00:01:14]} 38. Ra7 {[%clk
00:06:24]} Rc6 {[%clk 00:26:54]} {[%emt 00:01:09]} 39. Kh3 {[%clk 00:06:33]}
Ne7 {[%clk 00:26:04]} {[%emt 00:01:40]} 40. Kh4 {[%clk 00:06:19]} Nf5+ {[%clk
00:15:38]} {[%emt 00:11:40]} 41. Kh5 {[%clk 00:06:00]} Ke5 {[%clk 00:14:05]}
{[%emt 00:02:52]} 42. Kg6 {[%clk 00:04:14]} Ne3 {[%clk 00:13:49]} {[%emt
00:03:02]} 43. a4 {[%clk 00:01:06]} {[%emt 00:03:39]} f5+ {[%clk 00:11:27]}
{[%emt 00:02:51]} 44. Kg7 {[%clk 00:29:16]} {[%emt 00:02:21]} Rb6 {[%clk
00:40:34]} {[%emt 00:01:23]} 45. b5 {[%clk 00:29:17]} {[%emt 00:00:28]} axb5
{[%clk 00:40:57]} {[%emt 00:00:06]} 46. axb5 {[%clk 00:28:55]} {[%emt
00:00:52]} Rxb5 {[%clk 00:41:21]} {[%emt 00:00:07]} 47. Re7+ {[%clk 00:25:59]}
{[%emt 00:03:26]} Kd4 {[%clk 00:41:24]} {[%emt 00:00:27]} 48. Kxh6 {[%clk
00:25:44]} {[%emt 00:00:45]} Ng4+ {[%clk 00:41:09]} {[%emt 00:00:46]} 49. Kg5
{[%clk 00:26:06]} {[%emt 00:00:08]} Nxh2 {[%clk 00:41:33]} {[%emt 00:00:05]} 50.
Kf4 {[%clk 00:25:41]} {[%emt 00:00:54]} Rd5 {[%clk 00:35:21]} {[%emt 00:06:42]}
51. Rf7 {[%clk 00:24:58]} {[%emt 00:01:14]} Ng4 {[%clk 00:35:26]} {[%emt
00:00:24]} 52. Rxf5 {[%clk 00:24:16]} {[%emt 00:01:13]} Ne5 {[%clk 00:35:50]}
{[%emt 00:00:05]} 53. Rf6 {[%clk 00:21:56]} {[%emt 00:02:50]} Rd8 {[%clk
00:35:00]} {[%emt 00:01:20]} 54. Kf5 {[%clk 00:21:44]} {[%emt 00:00:43]} Kd5
{[%clk 00:34:32]} {[%emt 00:00:57]} 55. g4 {[%clk 00:21:29]} {[%emt 00:00:46]}
Nxg4 {[%clk 00:33:43]} {[%emt 00:01:18]} 56. Kxg4 {[%clk 00:21:52]} {[%emt
00:00:08]} 1/2-1/2